Cogmind - Beta 11.1 @@@ ROGUE MODE // 2022.09.03 @ 04:23:34 Player: woegarden Result: Destroyed by Y-45 Defender with Heavy Assault Rifle Performance ------------- Evolutions (2) 1000 Regions Visited (5) 1000 Robots Destroyed (20) 100 Value Destroyed (547) 547 Prototype IDs (7) 140 Alien Tech Used (0) 0 Bonus (200) 200 TOTAL SCORE: 2987 Bonus ------- Entered Garrisons 200 Cogmind --------- Core Integrity 0/550 Matter 262/300 Energy 72/100 System Corruption 0% Temperature Cool (9) Movement Walking (120) Location -8/Materials Parts ------- > --- POWER (1) -------- (None) > --- PROPULSION (5) --- Aluminum Leg Carbon-fiber Leg > --- UTILITY (2) ------ Small Storage Unit Medium Storage Unit > --- WEAPON (3) ------- (None) > --- INVENTORY (10) --- Cooling System Improved Sensor Array Melee Analysis Suite Reaction Control System Peak State ------------ > --- POWER ------------ Light Nuclear Core > --- PROPULSION ------- Flight Unit Flight Unit Flight Unit Flight Unit Improved Flight Unit > --- UTILITY ---------- Small Storage Unit Improved Sensor Array > --- WEAPON ----------- Improved Medium Laser Gauss Rifle Improved Datajack > --- INVENTORY -------- Cooled Ion Engine Cooling System Medium Storage Unit Melee Analysis Suite Reaction Control System Improved Propulsion Shielding [Rating: 25] Favorites ----------- Power Cooled Ion Engine Engine Cooled Ion Engine Power Core Light Nuclear Core Propulsion Flight Unit Treads Light Treads Leg Aluminum Leg Flight Unit Flight Unit Utility Small Storage Unit Device Sensor Array Storage Small Storage Unit Processor Improved Terrain Scan Processor Protection Improved Propulsion Shielding Weapon Improved EM Shotgun Energy Gun Improved EM Shotgun Energy Cannon Advanced Beam Cannon Ballistic Gun Light Assault Rifle Slashing Weapon Scythe Special Melee Weapon Improved Datajack Build | -11 -10 -9 -8 -8 -8 ------- Run | Scr Mat Mat Mat Gar Mat Slots Evolved 4 | . . 2 2 . . Power . | . . . . . . Propulsion 3 | . . 2 1 . . Utility . | . . . . . . Weapon 1 | . . . 1 . . Parts Attached 53 | . 12 15 15 4 7 Power 3 | . 1 . 1 1 . Engine 2 | . 1 . . 1 . Core 1 | . . . 1 . . Reactor . | . . . . . . Propulsion 25 | . 6 7 7 3 2 Treads 8 | . 5 2 1 . . Leg 2 | . . . . . 2 Wheel . | . . . . . . Hover . | . . . . . . Flight 15 | . 1 5 6 3 . Utility 10 | . 1 3 3 . 3 Device 4 | . 1 1 1 . 1 Storage 4 | . . 2 1 . 1 Processor 1 | . . . . . 1 Hackware . | . . . . . . Protection 1 | . . . 1 . . Artifact . | . . . . . . Weapon 15 | . 4 5 4 . 2 Energy Gun 3 | . 1 1 1 . . Energy Cannon 1 | . . 1 . . . Ballistic Gun 8 | . 3 3 1 . 1 Ballistic Cannon . | . . . . . . Launcher . | . . . . . . Special Weapon . | . . . . . . Impact Weapon . | . . . . . . Slashing Weapon 2 | . . . 1 . 1 Piercing Weapon . | . . . . . . Special Melee Weapon 1 | . . . 1 . . Unidentified Prototypes 5 | . 1 3 1 . . Parts Lost 19 | . 1 . 3 5 10 Power 2 | . . . . 1 1 Propulsion 11 | . . . 3 2 6 Utility 2 | . . . . 1 1 Weapon 4 | . 1 . . 1 2 Highest Loss Streak 10 | . 1 . 3 4 10 To Critical Strikes 1 | . . . . . 1 Average Slot Usage (%) 89 | . 91 98 90 86 54 Engine 10 | . 14 11 6 3 7 Treads 16 | . 26 21 2 . . Flight 19 | . . 22 40 44 23 Device 7 | . 7 10 7 . 4 Storage 11 | . 14 11 9 9 9 Protection 1 | . . . 1 9 . Energy Gun 5 | . 1 10 9 5 . Energy Cannon 1 | . . 3 1 . . Ballistic Gun 12 | . 26 7 5 . 2 Naked Turns . | . . . . . . Heaviest Build 26 | 11 20 26 24 18 18 Greatest Support 40 | 20 40 40 21 21 27 Greatest Overweight (x) 6 | . . . 6 5 2 Average Overweight (x) . | . . . . . . Largest Inventory Capacity 10 | . 8 10 10 8 10 Average Capacity 8 | . 8 9 8 8 8 Most Carried 10 | . 8 10 9 7 6 Average Carried 7 | . 7 9 7 5 5 Final Capacity 10 | 8 8 10 8 8 10 Final Carried 10 | 6 8 10 6 5 4 Class Distribution -------------------- 87% | Mutant 12% | Sprinter Dominant Class ---------------- Mutant | -10/Materials Mutant | -9/Materials Mutant | -8/Materials Mutant | -8/Garrison Mutant | -8/Materials Resources | -11 -10 -9 -8 -8 -8 ----------- Run | Scr Mat Mat Mat Gar Mat Matter Collected 851 | 200 236 204 145 11 55 Remotely . | . . . . . . Salvage Created 767 | . 351 210 151 . 55 Parts 42 | . 21 12 7 . 2 Haulers Intercepted 2 | . 1 1 . . . Recyclers Shooed . | . . . . . . Parts Field Recycled . | . . . . . . Retrieved Matter . | . . . . . . Parts Self-Destructed . | . . . . . . Prevented . | . . . . . . Kills | -11 -10 -9 -8 -8 -8 ------- Run | Scr Mat Mat Mat Gar Mat Combat Hostiles Destroyed 16 | . 8 4 3 . 1 Melee 1 | . . . . . 1 Guns 14 | . 8 3 3 . . Classes Destroyed 6 | . 5 1 . . . Hauler 2 | . 1 1 . . . Operator 1 | . 1 . . . . Watcher 1 | . 1 . . . . Swarmer 5 | . 3 2 . . . Grunt 9 | . 5 . 3 . 1 Sentry 2 | . . 2 . . . Best Kill Streak 5 | . 5 2 3 . 1 Combat Bots Only 4 | . 4 2 3 . 1 Max Kills in Single Turn 2 | . 2 1 1 . 1 Gunslinging 1 | . 1 . . . . Exploded . | . . . . . . Melee 1 | . . . . . 1 Uniques/NPCs Destroyed . | . . . . . . Combat | -11 -10 -9 -8 -8 -8 -------- Run | Scr Mat Mat Mat Gar Mat Damage Taken 2395 | . 413 148 452 545 837 Core 636 | . 40 32 69 157 338 Absorbed by Shields 125 | . . . . 125 . Redirected to Shielding 101 | . . . 11 90 . Core Remaining (%) 92 | 100 84 92 . . . Volleys Fired 58 | . 33 9 14 . 2 Largest 2 | . 2 2 2 . 1 Hottest 113 | . 85 113 84 . 23 Shots Fired 112 | . 64 18 28 . 2 Gun 111 | . 64 17 28 . 2 Cannon 1 | . . 1 . . . Launcher . | . . . . . . Special . | . . . . . . Kinetic 83 | . 59 8 14 . 2 Thermal 20 | . 5 1 14 . . Explosive . | . . . . . . Electromagnetic 9 | . . 9 . . . Robot Hit Streak 10 | . 10 7 9 . 1 Robot Miss Streak 3 | . 3 3 3 . 1 Penetration Max . | . . . . . . Secondary Targets 1 | . 1 . . . . Max Gunslinging Chain 1 | . 1 . . . . Shots Hit Robots 80 | . 42 13 21 . 4 Core Hits 33 | . 17 7 8 . 1 Critical Kills 1 | . . 1 . . . Critical Parts Destroyed . | . . . . . . Critical Strikes 2 | . . 1 1 . . Burn 1 | . . . 1 . . Meltdown 1 | . . 1 . . . Melee Attacks 6 | . . . 1 . 5 Impact . | . . . . . . Slashing 6 | . . . 1 . 5 Piercing . | . . . . . . Sneak Attacks . | . . . . . . Combat Hostiles . | . . . . . . Follow-up Attacks . | . . . . . . Damage Inflicted 1204 | . 545 156 385 . 118 Guns 1080 | . 545 136 385 . 14 Cannons 20 | . . 20 . . . Explosions . | . . . . . . Melee 104 | . . . . . 104 Ramming . | . . . . . . Kinetic 747 | . 482 32 219 . 14 Thermal 249 | . 63 20 166 . . Explosive . | . . . . . . Electromagnetic 104 | . . 104 . . . Impact . | . . . . . . Slashing 104 | . . . . . 104 Piercing . | . . . . . . Highest Corruption . | . . . . . . Average Corruption . | . . . . . . Corruption Purged . | . . . . . . Corruption Blocked . | . . . . . . Overload Shots . | . . . . . . Overflow Damage 5 | . . . . . 5 Projectiles . | . . . . . . Explosions . | . . . . . . Melee 5 | . . . . . 5 Knockbacks . | . . . . . . Impact . | . . . . . . Kinetic . | . . . . . . Secondary . | . . . . . . Self-Inflicted Damage . | . . . . . . Shots . | . . . . . . Rammed . | . . . . . . Targets Rammed . | . . . . . . Kicked . | . . . . . . Crushed . | . . . . . . Highest Temperature 153 | . 54 36 153 10 4 Average Temperature 35 | . 19 13 59 2 4 Received Heat Transfer 678 | . 162 18 225 138 135 Siege Activations . | . . . . . . Robots Corrupted . | . . . . . . Combat Hostiles . | . . . . . . Parts Fried . | . . . . . . Impact Corruptions . | . . . . . . Robots Melted 1 | . . 1 . . . Combat Hostiles 1 | . . 1 . . . Parts Melted 3 | . . 3 . . . Heat Transferred 629 | . 148 37 444 . . Parts Sabotaged . | . . . . . . Parts Stolen . | . . . . . . Parts Stripped . | . . . . . . Power Chain Reactions . | . . . . . . Missiles Intercepted . | . . . . . . Alert | -11 -10 -9 -8 -8 -8 ------- Run | Scr Mat Mat Mat Gar Mat Peak Influence 254 | . 254 165 159 223 208 Initial 108 | . . 107 69 93 108 Average 111 | . 104 96 114 134 160 Maximum Alert Level 1 | . 1 . . 1 1 Low Security (%) 93 | . 85 100 100 92 97 Level 1 6 | . 14 . . 7 2 Level 2 . | . . . . . . Level 3 . | . . . . . . Level 4 . | . . . . . . Level 5 . | . . . . . . High Security . | . . . . . . Max Security . | . . . . . . Squads Dispatched 4 | . 2 . . . 2 Investigation 1 | . . . . . 1 Extermination . | . . . . . . Reinforcement 3 | . 2 . . . 1 Assault . | . . . . . . Garrison . | . . . . . . Intercept . | . . . . . . Searches Triggered . | . . . . . . Construction Impeded . | . . . . . . Haulers Reinforced . | . . . . . . Active Scanning Responses . | . . . . . . Cargo Convoy Interrupts . | . . . . . . Stealth | -11 -10 -9 -8 -8 -8 --------- Run | Scr Mat Mat Mat Gar Mat Distress Signals . | . . . . . . Communications Jammed . | . . . . . . Distress Signals . | . . . . . . Times Spotted 60 | . 13 6 8 18 15 Peak Tracking Total 15 | . 4 5 5 15 11 Tactical Retreats 7 | . 1 . 1 3 2 Traps | -11 -10 -9 -8 -8 -8 ------- Run | Scr Mat Mat Mat Gar Mat Traps Triggered 4 | . . . . 4 . Indirectly . | . . . . . . Trap Hack Attempts . | . . . . . . Triggered . | . . . . . . Disarmed . | . . . . . . Reprogrammed . | . . . . . . Reused . | . . . . . . Traps Extracted . | . . . . . . Installed . | . . . . . . Triggered . | . . . . . . Machines | -11 -10 -9 -8 -8 -8 ---------- Run | Scr Mat Mat Mat Gar Mat Machines Disabled . | . . . . . . Max in Single Turn . | . . . . . . Machines Sabotaged . | . . . . . . Garrisons Compromised . | . . . . . . Overloaded Fab Kills . | . . . . . . Hacking | -11 -10 -9 -8 -8 -8 --------- Run | Scr Mat Mat Mat Gar Mat Machines Accessed 4 | . . 1 2 . 1 Terminals 3 | . . 1 1 . 1 Fabricators . | . . . . . . Repair Stations . | . . . . . . Recycling Units . | . . . . . . Scanalyzers . | . . . . . . Garrison Access 1 | . . . 1 . . Total Hacks 9 | . . 3 3 . 3 Successful 5 | . . 2 2 . 1 Failed 4 | . . 1 1 . 2 Catastrophic 1 | . . . 1 . . Database Lockouts . | . . . . . . Manual 3 | . . 1 . . 2 Terminals 8 | . . 3 2 . 3 Fabricators . | . . . . . . Repair Stations . | . . . . . . Recycling Units . | . . . . . . Scanalyzers . | . . . . . . Garrison Access 1 | . . . 1 . . Terminal Hacks 4 | . . 2 1 . 1 Prototype ID Bank 1 | . . . 1 . . Emergency Access Points 1 | . . . . . 1 Alert Level 1 | . . 1 . . . Unreport Threat 1 | . . 1 . . . Fabricator Hacks . | . . . . . . Repair Station Hacks . | . . . . . . Recycling Unit Hacks . | . . . . . . Scanalyzer . | . . . . . . Garrison Access Hacks 1 | . . . 1 . . Unlock Access 1 | . . . 1 . . Unauthorized Hacks . | . . . . . . Terminals . | . . . . . . Fabricators . | . . . . . . Repair Stations . | . . . . . . Recycling Units . | . . . . . . Scanalyzers . | . . . . . . Garrison Access . | . . . . . . Data Cores Recovered . | . . . . . . Used . | . . . . . . Hacking Detections 3 | . . 1 1 . 1 Full Trace Events 1 | . . . . . 1 Feedback Events . | . . . . . . Feedback Blocked . | . . . . . . Robot Schematics Acquired . | . . . . . . Robots Built . | . . . . . . Authchips . | . . . . . . Time . | . . . . . . Total Robot Build Rating . | . . . . . . Part Schematics Acquired . | . . . . . . Parts Built . | . . . . . . Authchips . | . . . . . . Time . | . . . . . . Total Part Build Rating . | . . . . . . Parts Repaired . | . . . . . . Time . | . . . . . . Parts Recycled . | . . . . . . Recycled Matter . | . . . . . . Retrieved Matter . | . . . . . . Retrieved Components . | . . . . . . Parts Scanalyzed . | . . . . . . Part Schematics Acquired . | . . . . . . Parts Damaged . | . . . . . . Bothacking | -11 -10 -9 -8 -8 -8 ------------ Run | Scr Mat Mat Mat Gar Mat Used RIF Installer . | . . . . . . Robots Hacked . | . . . . . . Non-combat . | . . . . . . Combat . | . . . . . . Robot Hacks Applied . | . . . . . . Relay Couplers Released . | . . . . . . Fabnet Peak Effective % . | . . . . . . Robots Rewired . | . . . . . . Allies Hacked . | . . . . . . Hacks Repelled . | . . . . . . Allies | -11 -10 -9 -8 -8 -8 -------- Run | Scr Mat Mat Mat Gar Mat Total Allies . | . . . . . . Largest Group . | . . . . . . Highest-Rated Group . | . . . . . . Highest-Rated Ally . | . . . . . . Total Orders . | . . . . . . Ally Attacks . | . . . . . . Total Damage . | . . . . . . Kills . | . . . . . . Allies Corrupted . | . . . . . . Allies Melted . | . . . . . . Intel | -11 -10 -9 -8 -8 -8 ------- Run | Scr Mat Mat Mat Gar Mat Robot Analysis Total . | . . . . . . Derelict Logs Recovered . | . . . . . . Drone Launches . | . . . . . . Drone Recoveries . | . . . . . . Exploration | -11 -10 -9 -8 -8 -8 ------------- Run | Scr Mat Mat Mat Gar Mat Turns Passed 1041 | . 349 332 149 104 107 Spaces Moved 915 | 1 134 179 222 177 202 Core 6 | . . . 1 1 4 Treads 297 | . 128 168 1 . . Legs 9 | 1 6 . . . 2 Wheels . | . . . . . . Hover . | . . . . . . Flight 603 | . . 11 220 176 196 Fastest Speed 28 | 120 120 31 28 28 28 Average Speed 75 | 120 158 152 31 29 38 Slowest Speed 350 | 120 160 160 350 250 150 Overloaded Moves . | . . . . . . Propulsion Burnouts . | . . . . . . Robots Hopped 5 | . . . 1 4 . Cave-ins Triggered . | . . . . . . Exploration Rate (%) 25 | 2 34 24 18 52 25 Regions Visited 5 Branch Regions . Pre-discovered Areas . | . . . . . . Known Exits Taken 1 | . . . 1 . . Unknown Exits Taken 3 | 1 1 1 . . . Scrap Searched . | . . . . . . Spaces Dug . | . . . . . . Terrain Destroyed 1 | . . . 1 . . Melee . | . . . . . . Projectile 1 | . . . 1 . . AOE . | . . . . . . Terrain Rammed . | . . . . . . Walls Destroyed . | . . . . . . Machines Disabled . | . . . . . . Actions | -11 -10 -9 -8 -8 -8 --------- Run | Scr Mat Mat Mat Gar Mat Total 1144 | . 211 220 270 224 219 Wait 20 | . 12 5 3 . . Move 902 | . 133 178 220 169 202 Hop 4 | . . . 1 3 . Pick Up 22 | . 9 5 7 . 1 Fast Attach 18 | . 4 4 3 1 6 Attach 14 | . 1 3 6 2 2 Detach 3 | . . 3 . . . Swap 22 | . 7 8 6 1 . Drop 29 | . 12 5 9 2 1 Fire 58 | . 33 9 14 . 2 Melee 6 | . . . 1 . 5 Ram . | . . . . . . Kick . | . . . . . . Crush . | . . . . . . Escape Stasis 46 | . . . . 46 . Rewire . | . . . . . . Trap . | . . . . . . Miscellaneous . | . . . . . . Route ------- -11/Scrapyard -10/Materials -9/Materials -8/Materials -8/Garrison -8/Materials History --------- Turn | Location | Event 1 | -11/Scrapyard | Discovered new exit (range 0) 1 | -11/Scrapyard | Entered Materials 307 | -10/Materials | Build established: Mutant 320 | -10/Materials | Discovered new exit (range 8) 350 | -10/Materials | Entered another Materials area 350 | -9/Materials | Evolved 2 slots: Propulsion x2 671 | -9/Materials | Discovered new exit (range 8) 682 | -9/Materials | Entered another Materials area 682 | -8/Materials | Evolved 2 slots: Propulsion x1, Weapon x1 821 | -8/Materials | Lost 3 parts (3n) 831 | -8/Materials | Identified exit to Garrison 831 | -8/Materials | Entered Garrison 852 | -8/Garrison | Triggered checkpoint 879 | -8/Garrison | Triggered checkpoint 907 | -8/Garrison | Discovered new exit (range 9) 922 | -8/Garrison | Lost 4 parts (1p2n1w) 935 | -8/Garrison | Entered Materials 1004 | -8/Materials | Core integrity fell below 50% 1031 | -8/Materials | Core integrity fell below 20% 1042 | -8/Materials | Destroyed by Y-45 Defender with Heavy Assault Rifle Last Messages --------------- 00973_ Flight Unit destroyed. 00973_ T-07 Excavator is excavating. 00980_ Flight Unit destroyed. 00989_ Acquired Faulty Imp. Flight Unit. 00989_ Malfunction: Meltdown. 00989_ Sml. Storage Unit damaged (-33). 00995_ Flight Unit destroyed. 00995_ Acquired Autogun. 00996_ Flight Unit destroyed. 01014_ Acquired Katana. 01016_ Imp. Flight Unit destroyed. 01020_ Critical hit (Destroy). 01020_ Autogun destroyed. 01026_ Weight Redist. System destroyed. 01026_ Cld. Ion Engine destroyed. 01026_ G-47 Trooper destroyed. 01029_ Acquired 55 matter. 01032_ Acquired Aluminum Leg. 01039_ Destroyed Heat Sink. 01039_ Katana destroyed. Map ----- +----------------------------------------------------+ | ### #####+##### #??????????????????????????? | | ??####### #???????????????????????????????? | | ????????# #???????????????????????????????? | | ????????# #???????????????????????????????? | | ????????# #???????????????????????????????? | | ????????# #???????????????????????????????? | | ????????# #???????????????????????????????? | | ????????# #???????????????????????????????? | | ????????# #???????????????????????????????? | | ????"???# #???????????????????????????????? | | ??? ???#####"####???????????????????????????????? | | ##+######## #????????????????????????????????? | | #????????????????????????????????? | | #????????????????????????????????? | | #????????????????????????????????? | | ###+### ] #????????????????????????????????? | | #?????## ##????????????????????????????????? | | #??????# #??????????####???????????????????? | | #??????# #?????????? ???????????????????? | | #??????# #?????????? ???????????????????? | | #??????# #?????????? ???????????????????? | | #??????# #??????????# #???????????????????? | | #??????# #??######### #???????????????????? | | # #??????### #??# s# #???????????????????? | | # #????????# #??# # #???????????????????? | | # #????????# #??# ] @# #???????????????????? | | # #????????# #??# sYY# #???????????????????? | | # #????????# #??# = s Y #???????????????????? | | # #????????# #?########## #???????????????????? | | + ########## ### ##### #???????????????????? | | # #???????????????????? | | # +????????????????? | | # ###########+## ##### ####????????????????? | | ####### #######???# #???????????????????? | | + #?????????# #???????????????????? | | ####### #????????? ???????????????????? | | ??????# #????????? ??????????????????? | | ??????# #????????? ?????????????????? | | ??????# #????????? [###????????????????? | | ??????# #?????????#####??????????????????? | | ??????# #????????????????????????????????? | | ??????###########????????????????????????????????? | | ?????????????????????????????????????????????????? | | ?????????????????????????????????????????????????? | | ?????????????????????????????????????????????????? | | ?????????????????????????????????????????????????? | | ?????????????????????????????????????????????????? | | | | | | | +----------------------------------------------------+ Best States ------------- Heat Dissipation 31 Energy Generation 14 Energy Capacity 280 Matter Stores 300 Matter Capacity 300 Sight Range 16 Robot Scan Range 15 Terrain Scan Density 110 Additional Mass Support 6 Propulsion Shielding 66 Evasion (%) 64 Recoil Reduction 2 Item Schematics ----------------- None Robot Schematics ------------------ None Fabricated ------------ Nothing Alien Tech Used ----------------- None Achievements -------------- None Challenges ------------ None Game ------ Seed RestorationImpactTorch Manual? 0 Play Time 00:22:52 Cumulative 95.3 hours Start 2022.09.03 @ 03:49:59 End 2022.09.03 @ 04:23:34 Sessions 1 Manual Loads 0 Difficulty Rogue Special Mode None Game No. 158 Rogue 112 Adventurer 45 Explorer 1 Win Type - Total 0 Types 0/0/0/0/0/0/0/0/0 Lore% 29 Gallery% 50 Achievement% 35 Wizard Run 0 Options --------- ASCII 0 Keyboard 0 Movement Mouse Keybinds 0 Fullscreen 2 Font 18/X11Bold Map View 76x50 Tactical HUD 1 Map Filters NONE Filters LOW_CONTRAST(13,24,33)|BRIGHTNESS(90)|SATURATION(87) Steam 1 RUN: ceef174e-d70e-47a5-933f-c9255f796d1a